fUSD/lending_fUSD_20240617
["ID","MTS","AMOUNT","RATE_DAILY","PERIOD"]
[329720085,1718608259248,-151.0,0.00027394,7]
[329720086,1718608259300,-151.0,0.00027394,7]
[329720087,1718608259352,-596.356119,0.00027394,7]
[329720088,1718608259370,-151.0,0.00027394,3]
[329720089,1718608259447,-596.356119,0.00027394,7]
[329720090,1718608259476,-190.729918,0.00027394,3]
[329720091,1718608259490,-367.258196,0.00027394,7]
[329720092,1718608259528,-367.258196,0.00027394,7]
[329720093,1718608259543,-151.0,0.00027394,7]
[329720094,1718608259572,-151.0,0.00027394,7]
[329720095,1718608259593,-151.0,0.00027394,7]
[329720096,1718608259615,-151.0,0.00027394,7]
[329720097,1718608259626,-207.489791,0.00027394,7]
[329720098,1718608259656,-151.0,0.00027394,7]
[329720099,1718608259716,-628.17,0.00027394,8]
[329720100,1718608259728,-782.243322,0.00027394,7]
[329720101,1718608259741,-782.243322,0.00027394,7]
[329720102,1718608259752,-151.0,0.00027394,7]
[329720103,1718608259777,-613.432444,0.00027394,7]
[329720104,1718608259800,-613.432444,0.00027394,7]
[329720105,1718608259825,-277.576903,0.00027394,7]
[329720106,1718608259839,-151.0,0.00027394,7]
[329720107,1718608259851,-277.576903,0.00027394,7]
[329720108,1718608259862,-151.0,0.00027394,7]
[329720109,1718608259875,-285.26756,0.00027394,7]
[329720110,1718608259899,-285.26756,0.00027394,7]
[329720111,1718608259917,-151.0,0.00027394,7]
[329720112,1718608259932,-489.389434,0.00027394,7]
[329720113,1718608259953,-489.389434,0.00027394,7]
[329720114,1718608259986,-151.0,0.00027394,7]
[329720115,1718608259997,-4900.89,0.00027394,8]
[329720116,1718608260014,-151.0,0.00027394,7]
[329720117,1718608260040,-4090.439835,0.00027394,7]
[329720118,1718608260051,-151.0,0.00027394,7]
[329720119,1718608260073,-4090.439835,0.00027394,7]
[329720120,1718608260099,-193493.72839583,0.00027394,2]
[329720121,1718608260125,-661.66608519,0.00027394,2]
[329720122,1718608260172,-1062.99965272,0.00027394,2]
[329720123,1718608260193,-18157.45156434,0.00027394,2]
[329720124,1718608260205,-358.33485164,0.00027394,2]
[329720125,1718608260220,-9881.99222486,0.00027394,2]
[329720126,1718608260246,-7768.1384,0.00027394,2]
[329720127,1718608260265,-7146.2938,0.00027394,2]
[329720128,1718608260283,-5597.39502542,0.00027394,2]
[329720129,1718608260301,-500.0,0.00027394,2]
[329720130,1718608260335,-156.45528285,0.00027395,2]
[329720131,1718608260352,-211.80386262,0.00027395,2]
[329720132,1718608260376,-155.34510688,0.00027395,2]
[329720133,1718608260396,-155.43300154,0.00027395,2]
[329720134,1718608260429,-263.25834041,0.00027395,2]
[329720135,1718608260449,-156.85534541,0.00027395,2]
[329720136,1718608260463,-1775.09932367,0.00027395,2]
[329720137,1718608260478,-155.45678494,0.00027395,2]
[329720138,1718608260490,-156.07937655,0.00027395,2]
[329720139,1718608260508,-278.20856863,0.00027395,2]
[329720140,1718608260519,-156.62073465,0.00027395,2]
[329720141,1718608260530,-362.36996851,0.00027395,2]
[329720142,1718608260554,-157.58799885,0.00027395,2]
[329720143,1718608260573,-551.2552136,0.00027395,2]
[329720144,1718608260584,-1600.47221813,0.00027395,2]
[329720145,1718608260611,-186.7848094,0.00027395,2]
[329720146,1718608260625,-225.77372858,0.00027395,2]
[329720147,1718608260639,-159.49350571,0.00027395,2]
[329720148,1718608260650,-5299.90250543,0.00027395,2]
[329720149,1718608260672,-573.2828905,0.00027395,2]
[329720150,1718608261290,-10652.49970907,0.00027395,2]
[329720151,1718608261302,-326.89554861,0.00027395,2]
[329720152,1718608261324,-8347.91019543,0.00027395,2]
[329720153,1718608261350,-1040.16476904,0.00027395,2]
[329720154,1718608261399,-925.50594997,0.00027395,2]
[329720155,1718608261422,-427.149998,0.00027395,2]
[329720156,1718608261454,-1425.37782642,0.00027395,2]
[329720157,1718608261467,-77.43796632,0.00027395,2]
[329720158,1718608261480,-276.14041564,0.00027395,2]
[329720159,1718608261495,-169.04477256,0.00027395,2]
[329720160,1718608261506,-101.04990439,0.00027395,2]
[329720161,1718608261841,-432.247668,0.00027395,2]
[329720162,1718608261857,-175.05704259,0.00027395,2]
[329720163,1718608261867,-575.63972953,0.00027395,2]
[329720164,1718608261893,-119.91322697,0.00027395,2]
[329720168,1718609177960,5300.0,0.000275,120]
[329720169,1718609220611,389.52,0.000181,10]
[329720172,1718609361238,-155.0,0.00013571,2]
[329720173,1718609361278,-532.14539917,0.00013571,2]
[329720174,1718609361307,-529.23291916,0.00013572,2]
[329720175,1718609361356,-2373.53052738,0.00013572,2]
[329720176,1718609361438,-217.67398709,0.00013572,2]
[329720177,1718609361484,-339.37755264,0.00013573,2]
[329720178,1718609361535,-206.22984294,0.00013573,2]
[329720179,1718609361576,-536.81180436,0.00013574,2]
[329720180,1718609361610,-8430.1525627,0.00013574,2]
[329720181,1718609361780,235.40449572,0.0001357,2]
[329720182,1718609363852,1068.88601313,0.0001357,2]
[329720183,1718609363932,9230.91748332,0.00013571,2]
[329720184,1718609364113,155.0,0.0001357,2]
[329720185,1718609368601,1000.0,0.00013569,2]
[329720186,1718609379952,-300.0,0.00013576,2]
[329720187,1718609380066,-150.0,0.00013583,2]
[329720188,1718609380112,-165.60822621,0.00013618,2]
[329720189,1718609380202,-730.81554559,0.00013728,2]
[329720190,1718609380254,-150.99,0.00013728,2]
[329720191,1718609380345,-3731.13712642,0.00013731,2]
[329720192,1718609380387,-938.1,0.00013731,2]
[329720193,1718609380422,-2988.04559274,0.00013735,2]
[329720194,1718609380486,-1662.71,0.00013735,2]
[329720195,1718609380554,-9999.99,0.00013735,2]
[329720196,1718609409802,348.27605979,0.00013735,2]
[329720197,1718609425711,348.10292751,0.00013735,2]
[329720227,1718609440659,-499.99,0.00013999,2]
[329720230,1718609440730,-150.0,0.00013999,2]
[329720236,1718609440804,-1097.13878616,0.00014,2]
[329720239,1718609440879,-18575.47378682,0.00014,2]
[329720244,1718609440972,-150.99,0.00014,2]
[329720249,1718609441020,-360.14,0.00014,2]
[329720281,1718609441670,-200.0,0.00014461,2]
[329720282,1718609441688,-1138.74,0.00014511,2]
[329720284,1718609441730,-499.99,0.00014511,2]
[329720286,1718609441743,-1113.37602153,0.00014552,2]
[329720289,1718609442470,-2828.56397847,0.00014552,2]
[329720290,1718609442498,-250.0,0.00014569,2]
[329720292,1718609442532,-705.53,0.00014626,2]
[329720294,1718609442546,-188.22,0.00014632,2]
[329720299,1718609442605,-934.66,0.00014632,2]
[329720300,1718609442640,-150.0,0.00014677,2]
[329720302,1718609442652,-3753.1223,0.000147,2]
[329720304,1718609442665,-6273.9594,0.00014762,2]
[329720307,1718609442705,-167.34,0.00014775,2]
[329720310,1718609442768,-13804.0858,0.000148,2]
[329720312,1718609442813,-34576.6997,0.000148,2]
[329720313,1718609442836,-38493.5145,0.000148,2]
[329720314,1718609442849,-169.69,0.00014987,2]
[329720315,1718609442887,-210.0,0.00015399,2]
[329720316,1718609442906,-176.45,0.00015409,2]
[329720317,1718609442936,-5773.62273787,0.00016487,2]
[329720318,1718609442948,-529.45,0.00016642,2]
[329720319,1718609442975,-1138.74,0.0001725,2]
[329720320,1718609443020,-625.4,0.00017548,2]
[329720321,1718609443051,-40942.64250286,0.00018088,2]
[329720322,1718609443071,-200.0,0.00018553,2]
[329720323,1718609443109,-156.76,0.00018692,2]
[329720324,1718609443120,-250.0,0.00019042,2]
[329720325,1718609443132,-1138.74,0.0001999,2]
[329720326,1718609443152,-226.83513534,0.000201,2]
[329720328,1718609443196,-187.8134191,0.00020265,2]
[329720330,1718609443213,-161.1,0.00020266,2]
[329720331,1718609443249,-161.1,0.00020272,2]
[329720332,1718609443269,-161.1,0.00020277,2]
[329720333,1718609443322,-161.1,0.00020282,2]
[329720334,1718609443348,-161.1,0.00020288,2]
[329720335,1718609443382,-161.1,0.00020293,2]
[329720337,1718609443420,-161.1,0.00020298,2]
[329720339,1718609443435,-161.1,0.00020304,2]
[329720341,1718609443460,-161.1,0.00020309,2]
[329720343,1718609443492,-161.1,0.00020315,2]
[329720346,1718609443526,-161.1,0.0002032,2]
[329720348,1718609443538,-161.1,0.00020325,2]
[329720350,1718609443555,-161.1,0.00020331,2]
[329720351,1718609443588,-161.1,0.00020336,2]
[329720353,1718609443607,-161.1,0.00020341,2]
[329720355,1718609443620,-161.1,0.00020347,2]
[329720357,1718609443643,-161.1,0.00020352,2]
[329720359,1718609443655,-161.1,0.00020357,2]
[329720361,1718609443673,-161.1,0.00020363,2]
[329720364,1718609443701,-161.1,0.00020368,2]
[329720365,1718609443722,-1250.0,0.00021,2]
[329720368,1718609443736,-333.6,0.00021918,2]
[329720370,1718609443748,-250.0,0.00021918,2]
[329720371,1718609443769,-176.45,0.00023114,2]
[329720373,1718609443807,-529.45,0.00023299,2]
[329720376,1718609443832,-161.46,0.00024384,2]
[329720379,1718609443884,-5000.0,0.00024582,2]
[329720380,1718609443918,-424.29232079,0.00024656,2]
[329720382,1718609443933,-752.83867739,0.00024656,2]
[329720384,1718609443956,-2500.0,0.000249,2]
[329720385,1718609443980,-6807.09530734,0.00025108,2]
[329720386,1718609443992,-175.67,0.00025179,2]
[329720389,1718609444029,-1000.0,0.00025238,2]
[329720391,1718609444060,-213.86,0.00025296,2]
[329720393,1718609444095,-151.0,0.00025667,4]
[329720395,1718609444116,-339.37755264,0.00025899,2]
[329720397,1718609444128,-8707.6649,0.000259,2]
[329720399,1718609444185,-20000.0,0.00026,3]
[329720401,1718609444197,-2272.81439192,0.00026017,2]
[329720403,1718609444238,-436.41837903,0.00026025,7]
[329720406,1718609444250,-1302.76719431,0.00026025,2]
[329720408,1718609444290,-166.66666666,0.00026079,2]
[329720410,1718609444323,-2272.81439192,0.00026086,2]
[329720411,1718609444336,-155.14585038,0.00026112,2]
[329720413,1718609444383,-166.66666666,0.00026171,2]
[329720415,1718609444400,-154.22048508,0.00026193,2]
[329720418,1718609444444,-38118.0,0.00026209,2]
[329720420,1718609444457,-1234.28,0.00026209,2]
[329720422,1718609444516,-450.44903211,0.00026258,2]
[329720424,1718609444535,-188.67367477,0.00026262,2]
[329720426,1718609444556,-150.3270856,0.00026263,2]
[329720429,1718609444590,-1000.0,0.00026277,2]
[329720430,1718609444607,-2272.81439192,0.00026354,2]
[329720433,1718609444619,-150.0,0.00026422,2]
[329720435,1718609444630,-166.66666668,0.00026471,2]
[329720436,1718609444642,-188.67367477,0.00026517,2]
[329720439,1718609444653,-165.45409526,0.00026575,2]
[329720443,1718609444724,-151.0,0.00026616,5]
[329720445,1718609444736,-159.27301698,0.00026628,2]
[329720447,1718609444782,-152.99643742,0.00026661,2]
[329720449,1718609444795,-450.44903211,0.00026688,2]
[329720450,1718609444837,-166.66666666,0.00026706,2]
[329720452,1718609444892,-155.36489338,0.0002672,2]
[329720454,1718609445029,-160.66098463,0.0002675,2]
[329720460,1718609445146,-160.66098463,0.00026765,2]
[329720461,1718609445210,-160.66098463,0.00026767,2]
[329720462,1718609445237,-160.66098463,0.00026778,2]
[329720463,1718609445250,-160.66098463,0.00026781,2]
[329720467,1718609445390,-622.41251876,0.00026791,2]
[329720469,1718609445416,-180.37139182,0.00026842,2]
[329720471,1718609445444,-188.67367477,0.00026845,2]
[329720473,1718609445472,-565.47881096,0.000269,2]
[329720475,1718609445485,-1026.39598494,0.00026921,2]
[329720477,1718609445513,-150.0,0.0002693,2]
[329720479,1718609445524,-450.44903211,0.00026955,2]
[329720481,1718609445543,-450.44903211,0.00026986,2]
[329720482,1718609445554,-20000.0,0.00027,3]
[329720484,1718609445574,-155.14585038,0.0002701,2]
[329720486,1718609445588,-174.91894373,0.0002707,2]
[329720488,1718609445600,-171.28866658,0.00027134,2]
[329720490,1718609445610,-500.0,0.00027173,2]
[329720491,1718609445621,-200.0,0.00027173,2]
[329720493,1718609445631,-500.0,0.00027175,2]
[329720495,1718609445645,-173.03217871,0.00027176,2]
[329720497,1718609445657,-450.44903211,0.00027189,2]
[329720499,1718609445675,-154.27538673,0.00027208,2]
[329720502,1718609445696,-166.66666666,0.00027237,2]
[329720504,1718609445712,-10000.0,0.0002729,2]
[329720506,1718609445724,-330.57400712,0.00027295,2]
[329720508,1718609445738,-698.4351,0.00027295,2]
[329720510,1718609445768,-270.7532,0.00027295,2]
[329720513,1718609445789,-2119.082,0.00027296,2]
[329720515,1718609445820,-500.0,0.00027296,2]
[329720517,1718609445834,-7500.0,0.00027297,2]
[329720519,1718609445845,-174.60961132,0.00027297,2]
[329720521,1718609445856,-344.00162182,0.00027297,2]
[329720523,1718609445866,-500.0,0.000273,2]
[329720525,1718609445877,-1008.22,0.000273,2]
[329720527,1718609445889,-313.08,0.000273,2]
[329720529,1718609445905,-344.00162172,0.00027306,2]
[329720530,1718609445919,-166.66666666,0.00027309,2]
[329720532,1718609445932,-344.00162172,0.00027316,2]
[329720551,1718609446236,-344.00162172,0.00027325,2]
[329720553,1718609446255,-344.00162172,0.00027334,2]
[329720556,1718609446305,-344.00162172,0.00027344,2]
[329720558,1718609446317,-622.41251876,0.00027344,2]
[329720560,1718609446344,-344.00162172,0.00027353,2]
[329720561,1718609446379,-344.00162172,0.00027363,2]
[329720563,1718609446391,-344.00162172,0.00027372,2]
[329720566,1718609446433,-344.00162172,0.00027381,2]
[329720568,1718609446469,-344.00162172,0.00027391,2]
[329720570,1718609446492,-37.82279492,0.00027395,2]
[329720572,1718609446507,-214.29215756,0.00027395,2]
[329720575,1718609446545,-1770.50503693,0.00027395,2]
[329720576,1718609446563,-163.8721123,0.00027395,2]
[329720579,1718609446594,-464.16010482,0.00027395,2]
[329720582,1718609446620,-217.64027755,0.00027395,2]
[329720584,1718609446652,-155.56475539,0.00027395,2]
[329720585,1718609446713,-161.78621996,0.00027395,2]
[329720587,1718609446731,-655.97298196,0.00027395,2]
[329720591,1718609446799,-161.1766454,0.00027395,2]
[329720592,1718609446824,-1917.62974697,0.00027395,2]
[329720594,1718609446840,-448.28396889,0.00027395,2]
[329720596,1718609446865,-2823.25950554,0.00027395,2]
[329720598,1718609446884,-2509.24593594,0.00027395,2]
[329720600,1718609446952,-667.21533428,0.00027395,2]
[329720602,1718609447020,-279.53581074,0.00027395,2]
[329720604,1718609447035,-317.12810746,0.00027395,2]
[329720605,1718609447050,-158.01880147,0.00027395,2]
[329720607,1718609447070,-578.01695237,0.00027395,2]
[329720609,1718609447086,-167.99998002,0.00027395,2]
[329720611,1718609447098,-495.16748041,0.00027395,2]
[329720613,1718609447136,-261.98473394,0.00027395,2]
[329720617,1718609447192,-155.0,0.00027395,2]
[329720618,1718609447206,-158.21637211,0.00027395,2]
[329720620,1718609447219,-356.65784675,0.00027395,2]
[329720622,1718609447235,-626.41859218,0.00027395,2]
[329720625,1718609447268,-155.64822768,0.00027395,2]
[329720627,1718609447325,-163.81475661,0.00027395,2]
[329720629,1718609447348,-497.62613511,0.00027395,2]
[329720630,1718609447374,-157.98909803,0.00027395,2]
[329720631,1718609447396,-2245.57108307,0.00027395,7]
[329720634,1718609447425,-155.0,0.00027395,2]
[329720636,1718609447437,-156.00471046,0.00027395,2]
[329720639,1718609447449,-158.40274136,0.00027395,2]
[329720642,1718609447475,-251.28886194,0.00027395,2]
[329720645,1718609447493,-269.6222555,0.00027395,2]
[329720647,1718609447507,-170.18089755,0.00027395,2]
[329720649,1718609447541,-155.36125809,0.00027395,2]
[329720651,1718609447554,-253.91960711,0.00027395,2]
[329720652,1718609447584,-257.66904333,0.00027395,2]
[329720655,1718609447607,-310.11368538,0.00027395,2]
[329720656,1718609447626,-155.1564804,0.00027395,2]
[329720658,1718609447637,-164.36464833,0.00027395,2]
[329720660,1718609447648,-27637.78534288,0.00027395,2]
[329720662,1718609447659,-163.37193246,0.00027395,2]
[329720664,1718609447669,-158.71284507,0.00027395,2]
[329720665,1718609447684,-156.21854213,0.00027395,2]
[329720667,1718609447705,-160.18922562,0.00027395,2]
[329720669,1718609447716,-480.56257194,0.00027395,2]
[329720671,1718609447727,-156.74800191,0.00027395,2]
[329720673,1718609447738,-224.30767836,0.00027395,2]
[329720675,1718609447753,-163.52177512,0.00027395,2]
[329720677,1718609447765,-291.19590536,0.00027395,2]
[329720679,1718609447786,-163.01831373,0.00027395,2]
[329720681,1718609447802,-157.8530466,0.00027395,2]
[329720683,1718609447814,-159.06738857,0.00027395,2]
[329720685,1718609447829,-361.0449962,0.00027395,2]
[329720687,1718609447848,-252.5671339,0.00027395,2]
[329720689,1718609447863,-304.61051398,0.00027395,2]
[329720691,1718609447874,-155.0,0.00027395,2]
[329720693,1718609447894,-182.6315174,0.00027395,2]
[329720695,1718609447919,-155.37425836,0.00027395,2]
[329720698,1718609447949,-155.0,0.00027395,3]
[329720700,1718609447969,-155.0,0.00027395,2]
[329720702,1718609447981,-156.66679349,0.00027395,2]
[329720704,1718609447993,-363.33600496,0.00027395,2]
[329720706,1718609448010,-232.67318766,0.00027395,2]
[329720707,1718609448037,-364.81837247,0.00027395,10]
[329720709,1718609448052,-155.8937949,0.00027395,2]
[329720711,1718609448064,-468.80506468,0.00027395,2]
[329720713,1718609448094,-338.68648196,0.00027395,2]
[329720716,1718609448115,-155.23397743,0.00027395,2]
[329720718,1718609448137,-155.26424838,0.00027395,2]
[329720720,1718609448160,-191.59678551,0.00027395,10]
[329720722,1718609448174,-300.79437591,0.00027395,2]
[329720724,1718609448196,-317.01274164,0.00027395,2]
[329720726,1718609448209,-934.02340679,0.00027395,2]
[329720727,1718609448222,-1625.10546899,0.00027395,2]
[329720730,1718609448252,-297.65866355,0.00027395,2]
[329720732,1718609448294,-157.33248771,0.00027395,2]
[329720734,1718609448329,-155.61123913,0.00027395,2]
[329720736,1718609448347,-1189.44417839,0.00027395,2]
[329720738,1718609448362,-1252.78329408,0.00027395,2]
[329720741,1718609448377,-804.98310741,0.00027395,2]
[329720742,1718609448389,-157.09346571,0.00027395,2]
[329720744,1718609448432,-1038.76809132,0.00027395,2]
[329720747,1718609448456,-327.183216,0.00027395,2]
[329720748,1718609448470,-384.30132123,0.00027395,2]
[329720750,1718609448493,-818.48434887,0.00027395,2]
[329720752,1718609448509,-155.61509871,0.00027395,2]
[329720754,1718609448525,-1000.0,0.00027395,2]
[329720756,1718609448542,-678.61957083,0.00027395,2]
[329720758,1718609448554,-329.78934151,0.00027395,2]
[329720759,1718609448565,-1015.04784702,0.00027395,30]
[329720760,1718609448577,-872.44211084,0.00027395,2]
[329720762,1718609448591,-211.31910478,0.00027395,2]
[329720764,1718609448604,-176.02815507,0.00027395,2]
[329720766,1718609448617,-573.8419998,0.00027395,2]
[329720768,1718609448639,-716.52092439,0.00027395,2]
[329720770,1718609448654,-326.5417784,0.00027395,2]
[329720772,1718609448666,-155.23022355,0.00027395,2]
[329720774,1718609448681,-5000.0,0.00027395,7]
[329720776,1718609448692,-2461.27345951,0.00027395,2]
[329720777,1718609448706,-2333.89036676,0.00027395,2]
[329720779,1718609448720,-205.2059502,0.00027395,2]
[329720781,1718609448739,-155.37726229,0.00027395,2]
[329720783,1718609448763,-366.69879568,0.00027395,2]
[329720785,1718609448777,-2000.0,0.00027395,2]
[329720787,1718609448794,-200.0,0.00027395,2]
[329720788,1718609448808,-155.6414555,0.00027395,2]
[329720791,1718609448824,-404.4248,0.00027395,2]
[329720793,1718609448856,-179.44313478,0.00027395,2]
[329720795,1718609448874,-1589.61570543,0.00027395,2]
[329720797,1718609448924,-315.9985246,0.00027395,2]
[329720799,1718609448939,-649.37320281,0.00027395,2]
[329720801,1718609448951,-220.94986941,0.00027395,2]
[329720803,1718609448966,-207.3785151,0.00027395,2]
[329720805,1718609448995,-300.69364558,0.00027395,2]
[329720807,1718609449035,-208.27615218,0.00027395,2]
[329720808,1718609449061,-386.72312449,0.00027395,2]
[329720810,1718609449078,-513.52579472,0.00027395,2]
[329720813,1718609449094,-195.78998469,0.00027395,2]
[329720814,1718609449123,-176.43477359,0.00027395,2]
[329720817,1718609449138,-805.38164574,0.00027395,2]
[329720819,1718609449165,-1000.0,0.00027395,2]
[329720821,1718609449194,-2604.76,0.00027395,8]
[329720823,1718609449229,-2604.76,0.00027395,8]
[329720824,1718609449243,-11484.50449579,0.00027396,2]
[329720826,1718609449260,-851.11353846,0.00027396,2]
[329720828,1718609449304,-2604.76,0.00027396,8]
[329720830,1718609449323,-2604.76,0.00027396,8]
[329720832,1718609449339,-2604.76,0.00027396,8]
[329720834,1718609449358,-2604.76,0.00027396,8]
[329720836,1718609449372,-2604.76,0.00027396,8]
[329720838,1718609449397,-2604.76,0.00027396,8]
[329720840,1718609449409,-2604.76,0.00027396,8]
[329720842,1718609449423,-2604.76,0.00027396,8]
[329720844,1718609449434,-2604.76,0.00027396,8]
[329720846,1718609449446,-2604.76,0.00027396,8]
[329720848,1718609449465,-2604.76,0.00027396,8]
[329720849,1718609449478,-2604.76,0.00027396,8]
[329720851,1718609449492,-2604.76,0.00027396,8]
[329720853,1718609449503,-2604.76,0.00027396,8]
[329720855,1718609449517,-2604.76,0.00027396,8]
[329720857,1718609449548,-2604.76,0.00027396,8]
[329720859,1718609449563,-2604.76,0.00027396,8]
[329720861,1718609449576,-2604.76,0.00027396,8]
[329720862,1718609449620,-2604.76,0.00027396,8]
[329720864,1718609449660,-2604.76,0.00027396,8]
[329720867,1718609449700,-2604.76,0.00027396,8]
[329720869,1718609449751,-2604.80796553,0.00027396,8]
[329720870,1718609449774,-346.17934881,0.00027397,5]
[329720872,1718609449810,-221.62389962,0.00027397,2]
[329720874,1718609449867,-221.62389962,0.00027397,2]
[329720877,1718609449909,-221.62389962,0.00027397,2]
[329720879,1718609449921,-3547.9057553,0.00027397,2]
[329720881,1718609449934,-3547.9057553,0.00027397,2]
[329720883,1718609449946,-3547.9057553,0.00027397,2]
[329720885,1718609449960,-3547.9057553,0.00027397,2]
[329720887,1718609449972,-3547.9057553,0.00027397,2]
[329720889,1718609449985,-502.45887621,0.00027397,8]
[329720891,1718609449998,-878.46,0.00027397,8]
[329720893,1718609450012,-878.46,0.00027397,8]
[329720896,1718609450026,-878.46,0.00027397,8]
[329720899,1718609450053,-878.46,0.00027397,8]
[329720901,1718609450070,-878.46,0.00027397,8]
[329720903,1718609450087,-878.46,0.00027397,8]
[329720906,1718609450117,-878.46,0.00027397,8]
[329720907,1718609450133,-878.46,0.00027397,8]
[329720910,1718609450146,-878.46,0.00027397,8]
[329720911,1718609450158,-878.46,0.00027397,8]
[329720913,1718609450186,-878.46,0.00027397,8]
[329720915,1718609450200,-878.46,0.00027397,8]
[329720917,1718609450231,-878.46,0.00027397,8]
[329720921,1718609450261,-878.46,0.00027397,8]
[329720923,1718609450283,-878.46,0.00027397,8]
[329720925,1718609450294,-878.46,0.00027397,8]
[329720927,1718609450307,-878.46,0.00027397,8]
[329720928,1718609450360,-878.46,0.00027397,8]
[329720930,1718609450377,-878.46,0.00027397,8]
[329720933,1718609450393,-878.46,0.00027397,8]
[329720935,1718609450410,-878.46,0.00027397,8]
[329720937,1718609450426,-878.46,0.00027397,8]
[329720939,1718609450446,-878.46,0.00027397,8]
[329720941,1718609450459,-878.52806754,0.00027397,8]
[329720943,1718609450472,-515.94720768,0.00027397,8]
[329720946,1718609450488,-525.59415471,0.00027397,8]
[329720948,1718609450510,-500.0,0.00027397,8]
[329720950,1718609450523,-500.0,0.00027397,8]
[329720952,1718609450555,-500.0,0.00027397,8]
[329720954,1718609450567,-500.0,0.00027397,8]
[329720955,1718609450590,-500.0,0.00027397,8]
[329720957,1718609450616,-500.0,0.00027397,8]
[329720960,1718609450648,-170.07382423,0.00027397,8]
[329720962,1718609450659,-500.0,0.00027397,8]
[329720963,1718609450674,-505.86995261,0.00027397,8]
[329720966,1718609450713,-500.0,0.00027397,8]
[329720967,1718609450748,-500.0,0.00027397,8]
[329720968,1718609450780,-500.0,0.00027397,8]
[329720969,1718609450793,-440.49756078,0.00027397,8]
[329720970,1718609450807,-500.0,0.00027397,8]
[329720972,1718609450836,-500.0,0.00027397,8]
[329720974,1718609450849,-500.0,0.00027397,8]
[329720976,1718609450884,-503.14966681,0.00027397,8]
[329720979,1718609450927,-512.13658811,0.00027397,8]
[329720980,1718609450940,-500.0,0.00027397,8]
[329720984,1718609451012,-500.0,0.00027397,8]
[329720986,1718609451035,-500.0,0.00027397,8]
[329720987,1718609451061,-288.03357335,0.00027397,8]
[329720989,1718609451080,-500.0,0.00027397,8]
[329720991,1718609451094,-500.0,0.00027397,8]
[329720993,1718609451119,-500.0,0.00027397,8]
[329720995,1718609451133,-500.0,0.00027397,8]
[329720997,1718609451146,-500.0,0.00027397,8]
[329720999,1718609451169,-500.0,0.00027397,8]
[329721001,1718609451180,-525.51439857,0.00027397,8]
[329721003,1718609451191,-500.0,0.00027397,8]
[329721004,1718609451202,-500.0,0.00027397,8]
[329721006,1718609451219,-500.0,0.00027397,8]
[329721008,1718609451241,-500.0,0.00027397,8]
[329721010,1718609451255,-500.0,0.00027397,8]
[329721012,1718609451305,-500.0,0.00027397,8]
[329721014,1718609451346,-496.74732536,0.00027397,8]
[329721017,1718609451381,-500.0,0.00027397,8]
[329721018,1718609451399,-500.0,0.00027397,8]
[329721020,1718609451417,-500.0,0.00027397,8]
[329721022,1718609451432,-500.0,0.00027397,8]
[329721024,1718609451444,-500.0,0.00027397,8]
[329721026,1718609451456,-500.0,0.00027397,8]
[329721028,1718609451490,-620.21281529,0.00027397,8]
[329721030,1718609451509,-500.0,0.00027397,8]
[329721033,1718609451524,-500.0,0.00027397,8]
[329721035,1718609451566,-500.0,0.00027397,8]
[329721036,1718609451579,-512.07268965,0.00027397,8]
[329721038,1718609451616,-500.0,0.00027397,8]
[329721041,1718609451636,-500.0,0.00027397,8]
[329721043,1718609451653,-500.0,0.00027397,8]
[329721045,1718609451663,-500.0,0.00027397,8]
[329721047,1718609451695,-523.24768,0.00027397,8]
[329721049,1718609451706,-500.0,0.00027397,8]
[329721052,1718609451722,-527.42147064,0.00027397,8]
[329721054,1718609451736,-504.47448187,0.00027397,8]
[329721056,1718609451747,-510.48755302,0.00027397,8]
[329721058,1718609451760,-500.0,0.00027397,8]
[329721060,1718609451787,-500.0,0.00027397,8]